[Event "Asian Amateur Rapid Women 2024"]
[Site "Al Ain"]
[Date "2024.12.15"]
[Round "7.8"]
[White "Asudani Ruhani Raj"]
[Black "Lulwa Khalifa Alhammadi"]
[Result "1-0"]
[ECO "D35"]
[WhiteElo "1613"]
[BlackElo "1621"]
[Annotator "NA RC"]
[PlyCount "139"]
[EventDate "2024.12.15"]
[EventType "swiss"]
[EventCountry "UAE"]
[SourceTitle "playchess.com"]
[Source "ChessBase"]
[SourceQuality "1"]
[TimeControl "900+10"]

1. d4 {[%emt 0:00:04]} d5 {[%emt 0:00:01]} 2. c4 {[%emt 0:00:01]} e6 {[%emt 0:00:02]} 3. cxd5 {[%emt 0:00:02]} exd5 {[%emt 0:00:01]} 4. Nc3 {[%emt 0:00:01]} Nf6 {[%emt 0:00:02]} 5. Bg5 {[%emt 0:00:01]} c6 {[%emt 0:00:02]} 6. e3 {[%emt 0:00:01]} h6 {[%emt 0:00:03]} 7. Bh4 {[%emt 0:00:02]} Bb4 {[%emt 0:00:08]} 8. Bd3 {[%emt 0:00:05]} O-O {[%emt 0:00:17]} 9. Nf3 {[%emt 0:00:01]} Bg4 {[%emt 0:00:06]} 10. O-O {[%emt 0:00:05]} Nbd7 {[%emt 0:00:09]} 11. Rc1 {[%emt 0:00:18]} Bd6 {[%emt 0:00:06]} 12. Be2 {[%emt 0:00:31]} Qe7 {[%emt 0:00:26]} 13. a3 {[%emt 0:01:41]} Qe6 {[%emt 0:00:58]} 14. Na4 {[%emt 0:01:34]} Qe4 {[%emt 0:02:14]} 15. Bxf6 {[%emt 0:01:19]} Nxf6 {[%emt 0:00:42]} 16. h3 {[%emt 0:01:01]} Bh5 {[%emt 0:00:30]} 17. Nc5 {[%emt 0:02:37]} Bxc5 {[%emt 0:01:17]} 18. Rxc5 {[%emt 0:00:14]} Rfe8 {[%emt 0:02:32]} 19. b4 {[%emt 0:01:41]} Nd7 {[%emt 0:01:18]} 20. Rc3 {[%emt 0:00:55]} Re6 {[%emt 0:00:14]} 21. Qc2 {[%emt 0:02:05]} Bxf3 {[%emt 0:00:25]} 22. Bxf3 {[%emt 0:00:08]} Qh4 {[%emt 0:00:19]} 23. b5 {[%emt 0:04:33]} Rc8 {[%emt 0:01:42]} 24. Bg4 {[%emt 0:00:00]} Rd6 {[%emt 0:00:24]} 25. Bxd7 {[%emt 0:00:00]} Rxd7 {[%emt 0:00:02]} 26. bxc6 {[%emt 0:00:00]} bxc6 {[%emt 0:00:20]} 27. Rxc6 {[%emt 0:00:00]} Rxc6 {[%emt 0:00:07]} 28. Qxc6 {[%emt 0:00:00]} Qe7 {[%emt 0:00:32]} 29. Rb1 {[%emt 0:00:00]} Rd6 {[%emt 0:02:05]} 30. Qc5 {[%emt 0:00:00]} Qd7 {[%emt 0:00:54]} 31. Rb8+ {[%emt 0:00:00]} Kh7 {[%emt 0:00:04]} 32. Ra8 {[%emt 0:00:00]} a6 {[%emt 0:00:06]} 33. Ra7 {[%emt 0:00:00]} Qe6 {[%emt 0:00:39]} 34. Qc2+ {[%emt 0:00:00]} g6 {[%emt 0:00:10]} 35. Qc5 {[%emt 0:00:15]} Kg7 {[%emt 0:00:09]} 36. Ra8 {[%emt 0:00:11]} Qd7 {[%emt 0:00:30]} 37. f3 {[%emt 0:00:27]} Qe6 {[%emt 0:00:28]} 38. Kf2 {[%emt 0:00:17]} Kf6 {[%emt 0:00:19]} 39. Qc8 {[%emt 0:00:31]} Qxc8 {[%emt 0:00:12]} 40. Rxc8 {[%emt 0:00:01]} Ke6 {[%emt 0:00:02]} 41. g4 {[%emt 0:00:11]} Rb6 {[%emt 0:00:10]} 42. f4 {[%emt 0:00:22]} Rb3 {[%emt 0:00:05]} 43. Rc6+ {[%emt 0:00:03]} Ke7 {[%emt 0:00:04]} 44. Rxa6 {[%emt 0:00:02]} Rb2+ {[%emt 0:00:03]} 45. Kf3 {[%emt 0:00:02]} Rh2 {[%emt 0:00:02]} 46. Ra7+ {[%emt 0:00:28]} Ke6 {[%emt 0:00:03]} 47. f5+ {[%emt 0:00:06]} gxf5 {[%emt 0:00:12]} 48. gxf5+ {[%emt 0:00:02]} Kf6 {[%emt 0:00:02]} 49. Ra6+ {[%emt 0:00:08]} Kg5 {[%emt 0:00:06]} 50. Kg3 {[%emt 0:00:14]} Re2 {[%emt 0:00:03]} 51. Kf3 {[%emt 0:00:22]} Rh2 {[%emt 0:00:02]} 52. Rd6 {[%emt 0:00:07]} Rxh3+ {[%emt 0:00:11]} 53. Kf2 {[%emt 0:00:03]} Kxf5 {[%emt 0:00:22]} 54. Rxd5+ {[%emt 0:00:02]} Ke4 {[%emt 0:00:14]} 55. Re5+ {[%emt 0:00:02]} Kd3 {[%emt 0:00:04]} 56. d5 {[%emt 0:00:07]} Rh2+ {[%emt 0:00:12]} 57. Kf3 {[%emt 0:00:10]} Rh3+ {[%emt 0:00:23]} 58. Kg4 {[%emt 0:00:18]} Rh2 {[%emt 0:00:09]} 59. d6 {[%emt 0:00:08]} Rg2+ {[%emt 0:00:09]} 60. Kf3 {[%emt 0:00:04]} Rg8 {[%emt 0:00:04]} 61. Rd5+ {[%emt 0:00:17]} Kc4 {[%emt 0:00:02]} 62. Rd4+ {[%emt 0:00:01]} Kc5 {[%emt 0:00:02]} 63. Ke4 {[%emt 0:00:12]} Rg4+ {[%emt 0:00:09]} 64. Ke5 {[%emt 0:00:56]} Rxd4 {[%emt 0:00:33]} 65. exd4+ {[%emt 0:00:04]} Kc6 {[%emt 0:00:01]} 66. a4 {[%emt 0:00:20]} h5 {[%emt 0:01:04]} 67. a5 {[%emt 0:00:01]} f6+ {[%emt 0:00:01]} 68. Ke6 {[%emt 0:00:03]} h4 {[%emt 0:00:11]} 69. d7 {[%emt 0:00:01]} h3 {[%emt 0:00:01]} 70. d8=Q {[%emt 0:00:03]} 1-0

[Event "Asian Amateur Rapid Women 2024"]
[Site "Al Ain"]
[Date "2024.12.15"]
[Round "7.9"]
[White "Charomova, Evguenia"]
[Black "Latifah, Darmaki"]
[Result "0-1"]
[ECO "C54"]
[WhiteElo "1870"]
[BlackElo "1540"]
[Annotator "NA RC"]
[PlyCount "58"]
[EventDate "2024.12.15"]
[EventType "swiss"]
[EventCountry "UAE"]
[SourceTitle "playchess.com"]
[Source "ChessBase"]
[SourceQuality "1"]
[TimeControl "900+10"]

1. e4 {[%emt 0:00:01]} e5 {[%emt 0:00:01]} 2. Nf3 {[%emt 0:00:02]} Nc6 {[%emt 0:00:01]} 3. Bc4 {[%emt 0:00:01]} Bc5 {[%emt 0:00:02]} 4. c3 {[%emt 0:00:42]} Nf6 {[%emt 0:00:02]} 5. d4 {[%emt 0:01:03]} exd4 {[%emt 0:00:02]} 6. e5 {[%emt 0:00:46]} d5 {[%emt 0:00:02]} 7. exf6 {[%emt 0:03:23]} dxc4 {[%emt 0:00:04]} 8. fxg7 {[%emt 0:00:06]} Qe7+ {[%emt 0:00:39]} 9. Be3 {[%emt 0:00:31]} Rg8 {[%emt 0:00:17]} 10. cxd4 {[%emt 0:00:17]} Bb4+ {[%emt 0:00:12]} 11. Nc3 {[%emt 0:01:05]} Bg4 {[%emt 0:00:04]} 12. Qe2 {[%emt 0:00:36]} O-O-O {[%emt 0:00:15]} 13. O-O-O {[%emt 0:01:58]} Bxc3 {[%emt 0:00:18]} 14. bxc3 {[%emt 0:00:06]} Qa3+ {[%emt 0:00:01]} 15. Qb2 {[%emt 0:00:06]} Qa5 {[%emt 0:00:32]} 16. Bh6 {[%emt 0:01:08]} Rd6 {[%emt 0:00:20]} 17. Bf4 {[%emt 0:00:26]} Bxf3 {[%emt 0:00:49]} 18. gxf3 {[%emt 0:00:05]} Rf6 {[%emt 0:00:03]} 19. Bg3 {[%emt 0:01:14]} Rxf3 {[%emt 0:00:03]} 20. Kc2 {[%emt 0:00:02]} Qf5+ {[%emt 0:00:20]} 21. Kc1 {[%emt 0:00:11]} Qa5 {[%emt 0:00:34]} 22. Kc2 {[%emt 0:00:19]} Rxg7 {[%emt 0:00:43]} 23. d5 {[%emt 0:00:06]} Qa4+ {[%emt 0:00:53]} 24. Kc1 {[%emt 0:00:16]} Rg5 {[%emt 0:04:30]} 25. Rhe1 {[%emt 0:03:13]} Nd8 {[%emt 0:02:01]} 26. h4 {[%emt 0:00:47]} Rgf5 {[%emt 0:00:11]} 27. Re7 {[%emt 0:00:36]} Rxg3 {[%emt 0:02:18]} 28. fxg3 {[%emt 0:00:04]} Rf3 {[%emt 0:00:05]} 29. d6 {[%emt 0:00:17]} cxd6 {[%emt 0:01:53]} 0-1

[Event "Asian Amateur Rapid Women 2024"]
[Site "Al Ain"]
[Date "2024.12.15"]
[Round "7.10"]
[White "Saeidpour, Mona"]
[Black "Bhandari, Pooja"]
[Result "1-0"]
[ECO "E32"]
[WhiteElo "1905"]
[BlackElo "1684"]
[Annotator "NA RC"]
[PlyCount "87"]
[EventDate "2024.12.15"]
[EventType "swiss"]
[EventCountry "UAE"]
[SourceTitle "playchess.com"]
[Source "ChessBase"]
[SourceQuality "1"]
[TimeControl "900+10"]

1. d4 {[%emt 0:00:01]} Nf6 {[%emt 0:00:05]} 2. c4 {[%emt 0:00:02]} e6 {[%emt 0:00:02]} 3. Nc3 {[%emt 0:00:01]} Bb4 {[%emt 0:00:03]} 4. Qc2 {[%emt 0:00:02]} O-O {[%emt 0:00:10]} 5. a3 {[%emt 0:00:38]} Be7 {[%emt 0:00:07]} 6. Bg5 {[%emt 0:00:37]} h6 {[%emt 0:00:07]} 7. Bh4 {[%emt 0:00:01]} b6 {[%emt 0:00:03]} 8. f3 {[%emt 0:00:31]} d5 {[%emt 0:00:21]} 9. e3 {[%emt 0:00:32]} Bb7 {[%emt 0:00:11]} 10. Bd3 {[%emt 0:00:22]} Nbd7 {[%emt 0:00:19]} 11. Nge2 {[%emt 0:00:10]} c5 {[%emt 0:00:21]} 12. O-O {[%emt 0:01:06]} Nh5 {[%emt 0:00:23]} 13. Bf2 {[%emt 0:00:17]} Bh4 {[%emt 0:00:44]} 14. g3 {[%emt 0:00:46]} Be7 {[%emt 0:00:20]} 15. cxd5 {[%emt 0:00:40]} exd5 {[%emt 0:00:12]} 16. Rfd1 {[%emt 0:00:23]} Qc7 {[%emt 0:01:29]} 17. Rac1 {[%emt 0:00:34]} Rac8 {[%emt 0:00:46]} 18. g4 {[%emt 0:01:44]} Nhf6 {[%emt 0:00:13]} 19. Nb5 {[%emt 0:00:18]} Qb8 {[%emt 0:00:10]} 20. Bg3 {[%emt 0:00:04]} Qa8 {[%emt 0:01:14]} 21. Nc7 {[%emt 0:00:09]} Rxc7 {[%emt 0:00:08]} 22. Bxc7 {[%emt 0:00:02]} Rc8 {[%emt 0:00:21]} 23. Bf4 {[%emt 0:01:19]} cxd4 {[%emt 0:00:07]} 24. Qd2 {[%emt 0:00:07]} Rxc1 {[%emt 0:00:19]} 25. Rxc1 {[%emt 0:00:24]} dxe3 {[%emt 0:00:29]} 26. Bxe3 {[%emt 0:00:06]} Ne5 {[%emt 0:00:36]} 27. Nd4 {[%emt 0:00:42]} Bc5 {[%emt 0:00:41]} 28. Be2 {[%emt 0:00:21]} Qd8 {[%emt 0:03:16]} 29. Nf5 {[%emt 0:01:29]} d4 {[%emt 0:02:51]} 30. Nxd4 {[%emt 0:00:17]} Bxd4 {[%emt 0:00:15]} 31. Qxd4 {[%emt 0:00:16]} Qxd4 {[%emt 0:00:21]} 32. Bxd4 {[%emt 0:00:01]} Nxf3+ {[%emt 0:00:09]} 33. Bxf3 {[%emt 0:00:09]} Bxf3 {[%emt 0:00:04]} 34. Rc8+ {[%emt 0:00:28]} Kh7 {[%emt 0:00:20]} 35. Bxf6 {[%emt 0:00:03]} gxf6 {[%emt 0:00:06]} 36. h3 {[%emt 0:00:06]} Kg6 {[%emt 0:00:09]} 37. Kf2 {[%emt 0:01:18]} Bd5 {[%emt 0:00:18]} 38. Rc7 {[%emt 0:00:36]} a6 {[%emt 0:00:15]} 39. Rd7 {[%emt 0:01:06]} Bc4 {[%emt 0:01:47]} 40. Rd6 {[%emt 0:00:06]} b5 {[%emt 0:00:02]} 41. Rxa6 {[%emt 0:00:08]} Kg5 {[%emt 0:00:04]} 42. Kg3 {[%emt 0:00:30]} Bd3 {[%emt 0:00:22]} 43. b4 {[%emt 0:00:48]} f5 {[%emt 0:00:20]} 44. h4# {[%emt 0:00:04]} 1-0

[Event "Asian Amateur Rapid Women 2024"]
[Site "Al Ain"]
[Date "2024.12.15"]
[Round "7.11"]
[White "Hotami, Mutriba"]
[Black "Rani Puja"]
[Result "0-1"]
[ECO "C63"]
[WhiteElo "1882"]
[BlackElo "1478"]
[Annotator "NA RC"]
[PlyCount "62"]
[EventDate "2024.12.15"]
[EventType "swiss"]
[EventCountry "UAE"]
[SourceTitle "playchess.com"]
[Source "ChessBase"]
[SourceQuality "1"]
[TimeControl "900+10"]

1. e4 {[%emt 0:00:02]} e5 {[%emt 0:00:01]} 2. Nf3 {[%emt 0:00:04]} Nc6 {[%emt 0:00:02]} 3. Bb5 {[%emt 0:00:04]} f5 {[%emt 0:00:02]} 4. d3 {[%emt 0:00:11]} fxe4 {[%emt 0:00:03]} 5. dxe4 {[%emt 0:00:01]} Nf6 {[%emt 0:00:02]} 6. O-O {[%emt 0:01:48]} Bc5 {[%emt 0:00:07]} 7. Nc3 {[%emt 0:00:38]} O-O {[%emt 0:00:14]} 8. Bg5 {[%emt 0:00:22]} d6 {[%emt 0:00:23]} 9. Bc4+ {[%emt 0:00:13]} Kh8 {[%emt 0:00:04]} 10. Nd5 {[%emt 0:00:14]} Bg4 {[%emt 0:00:56]} 11. Qd3 {[%emt 0:00:28]} Na5 {[%emt 0:00:38]} 12. Bb3 {[%emt 0:00:26]} Nxb3 {[%emt 0:00:11]} 13. axb3 {[%emt 0:00:01]} Qd7 {[%emt 0:00:43]} 14. Nh4 {[%emt 0:05:10]} Be6 {[%emt 0:00:58]} 15. Ne3 {[%emt 0:00:50]} Qf7 {[%emt 0:00:40]} 16. Nf3 {[%emt 0:02:12]} Qg6 {[%emt 0:00:26]} 17. Bxf6 {[%emt 0:01:32]} Rxf6 {[%emt 0:00:16]} 18. Nh4 {[%emt 0:00:32]} Qg5 {[%emt 0:00:30]} 19. Nhf5 {[%emt 0:00:07]} Raf8 {[%emt 0:01:58]} 20. b4 {[%emt 0:00:40]} Bb6 {[%emt 0:00:09]} 21. c4 {[%emt 0:00:28]} Bxe3 {[%emt 0:01:09]} 22. Nxe3 {[%emt 0:00:15]} Rh6 {[%emt 0:00:28]} 23. g3 {[%emt 0:01:36]} Qh5 {[%emt 0:00:15]} 24. h4 {[%emt 0:00:08]} Qf3 {[%emt 0:00:15]} 25. Kh2 {[%emt 0:00:36]} g5 {[%emt 0:00:55]} 26. Qd1 {[%emt 0:00:23]} Qxe4 {[%emt 0:00:18]} 27. h5 {[%emt 0:00:11]} g4 {[%emt 0:00:28]} 28. Ng2 {[%emt 0:00:19]} Rxh5+ {[%emt 0:00:13]} 29. Nh4 {[%emt 0:00:01]} Bxc4 {[%emt 0:00:30]} 30. Re1 {[%emt 0:00:08]} Rxh4+ {[%emt 0:00:27]} 31. gxh4 {[%emt 0:00:09]} Rxf2+ {[%emt 0:00:03]} 0-1

[Event "Asian Amateur Rapid Women 2024"]
[Site "Al Ain"]
[Date "2024.12.15"]
[Round "7.12"]
[White "Shamsa, Amer"]
[Black "Marksim Karki Abirami, Sriiyukthaa"]
[Result "0-1"]
[ECO "B50"]
[WhiteElo "1465"]
[BlackElo "1466"]
[Annotator "NA RC"]
[PlyCount "90"]
[EventDate "2024.12.15"]
[EventType "swiss"]
[EventCountry "UAE"]
[SourceTitle "playchess.com"]
[Source "ChessBase"]
[SourceQuality "1"]
[TimeControl "900+10"]

1. e4 {[%emt 0:00:03]} c5 {[%emt 0:00:01]} 2. Nf3 {[%emt 0:00:01]} d6 {[%emt 0:00:02]} 3. c3 {[%emt 0:00:01]} Nf6 {[%emt 0:00:05]} 4. Be2 {[%emt 0:00:03]} g6 {[%emt 0:00:03]} 5. O-O {[%emt 0:00:11]} Bg7 {[%emt 0:00:01]} 6. Re1 {[%emt 0:00:24]} O-O {[%emt 0:00:02]} 7. Bc4 {[%emt 0:00:06]} Nc6 {[%emt 0:00:11]} 8. d4 {[%emt 0:00:05]} Bg4 {[%emt 0:00:04]} 9. d5 {[%emt 0:00:28]} Ne5 {[%emt 0:00:04]} 10. Be2 {[%emt 0:00:11]} Bxf3 {[%emt 0:00:24]} 11. Bxf3 {[%emt 0:00:05]} Nxf3+ {[%emt 0:00:02]} 12. Qxf3 {[%emt 0:00:03]} Nd7 {[%emt 0:00:13]} 13. Nd2 {[%emt 0:00:44]} f5 {[%emt 0:00:06]} 14. Nc4 {[%emt 0:00:45]} b5 {[%emt 0:00:11]} 15. Nd2 {[%emt 0:00:07]} fxe4 {[%emt 0:00:07]} 16. Qxe4 {[%emt 0:00:07]} Rf7 {[%emt 0:00:23]} 17. Qe6 {[%emt 0:00:39]} Nf8 {[%emt 0:00:31]} 18. Qe2 {[%emt 0:00:25]} Nd7 {[%emt 0:00:18]} 19. Qxb5 {[%emt 0:00:15]} Rb8 {[%emt 0:00:11]} 20. Qe2 {[%emt 0:00:01]} Qf8 {[%emt 0:00:02]} 21. Nf3 {[%emt 0:00:02]} Ne5 {[%emt 0:00:02]} 22. Ng5 {[%emt 0:00:37]} Rf6 {[%emt 0:00:36]} 23. Ne6 {[%emt 0:00:30]} Qf7 {[%emt 0:00:03]} 24. Bg5 {[%emt 0:00:11]} Rf5 {[%emt 0:00:18]} 25. Rad1 {[%emt 0:00:51]} h6 {[%emt 0:00:37]} 26. Bh4 {[%emt 0:00:30]} Bf6 {[%emt 0:00:24]} 27. Bg3 {[%emt 0:00:28]} c4 {[%emt 0:00:28]} 28. Rd2 {[%emt 0:00:44]} Nd3 {[%emt 0:00:06]} 29. Rf1 {[%emt 0:01:03]} Be5 {[%emt 0:00:24]} 30. Bxe5 {[%emt 0:01:12]} Rxe5 {[%emt 0:00:02]} 31. Qg4 {[%emt 0:01:21]} Rxd5 {[%emt 0:00:06]} 32. Qxc4 {[%emt 0:01:18]} Qxe6 {[%emt 0:00:25]} 33. Rxd3 {[%emt 0:00:03]} Re5 {[%emt 0:00:06]} 34. Qxe6+ {[%emt 0:00:39]} Rxe6 {[%emt 0:00:02]} 35. b4 {[%emt 0:00:01]} Re2 {[%emt 0:00:08]} 36. a4 {[%emt 0:00:13]} Rc8 {[%emt 0:00:03]} 37. Rc1 {[%emt 0:00:10]} Rb2 {[%emt 0:00:04]} 38. Re3 {[%emt 0:00:15]} Rc7 {[%emt 0:00:13]} 39. Re4 {[%emt 0:00:33]} d5 {[%emt 0:00:06]} 40. b5 {[%emt 0:00:51]} dxe4 {[%emt 0:00:01]} 41. c4 {[%emt 0:00:05]} Rb4 {[%emt 0:00:08]} 42. a5 {[%emt 0:00:30]} Rbxc4 {[%emt 0:00:02]} 43. Rxc4 {[%emt 0:00:36]} Rxc4 {[%emt 0:00:01]} 44. Kf1 {[%emt 0:00:02]} Rc5 {[%emt 0:00:03]} 45. b6 {[%emt 0:00:04]} Rxa5 {[%emt 0:00:03]} 0-1